Cogmind - Beta 14 @@@ ROGUE MODE // 2025.03.13 @ 17:24:41 Player: CDGotthats Result: Destroyed by D-53 Grenadier with Mini Grenade Launcher Performance ------------- Evolutions (0) 0 Regions Visited (2) 400 Robots Destroyed (29) 145 Value Destroyed (544) 544 Prototype IDs (0) 0 Alien Tech Used (0) 0 Bonus (0) 0 TOTAL SCORE: 1089 Bonus ------- None Cogmind --------- Core Integrity 0/250 Matter 418/450 Energy 250/250 System Corruption 0% Temperature Cool (0) Movement Walking (185) Ox1 Location -10/Mines Parts ------- > --- POWER (1) -------- Ion Engine > --- PROPULSION (2) --- Aluminum Leg VSS Leg > --- UTILITY (2) ------ Medium Storage Unit Large Matter Pod > --- WEAPON (2) ------- Rocket Launcher Mining Claw > --- INVENTORY (10) --- Light Ion Engine Aluminum Leg Sensor Array Signal Interpreter Actuator Array Weapon Shielding High-powered Shotgun Mining Laser Mining Claw Peak State ------------ > --- POWER ------------ Light Deuterium Engine > --- PROPULSION ------- Aluminum Leg VSS Leg > --- UTILITY ---------- Medium Storage Unit Large Matter Pod > --- WEAPON ----------- High-powered Shotgun Rocket Launcher > --- INVENTORY -------- Ion Engine Aluminum Leg Aluminum Leg Sensor Array Signal Interpreter Actuator Array Weapon Shielding Mining Laser Mining Claw Mining Claw [Rating: 15] Favorites ----------- Power Ion Engine Engine Ion Engine Power Core Light Nuclear Core Propulsion Aluminum Leg Treads Light Treads Leg Aluminum Leg Utility Medium Matter Pod Device Heat Sink Storage Medium Matter Pod Weapon Light Assault Rifle Energy Gun Small Laser Ballistic Gun Light Assault Rifle Launcher Rocket Launcher Special Weapon Mining Laser Slashing Weapon Mining Claw Build | -11 -10 -10 ------- Run | Yrd Mat Min Slots Evolved . | . . . Power . | . . . Propulsion . | . . . Utility . | . . . Weapon . | . . . Parts Attached 35 | 6 18 11 Power 5 | 1 1 3 Engine 4 | 1 1 2 Core 1 | . . 1 Reactor . | . . . Propulsion 11 | 2 7 2 Treads 2 | . 2 . Leg 9 | 2 5 2 Wheel . | . . . Hover . | . . . Flight . | . . . Utility 6 | 1 4 1 Device 1 | . 1 . Storage 5 | 1 3 1 Processor . | . . . Hackware . | . . . Protection . | . . . Artifact . | . . . Weapon 13 | 2 6 5 Energy Gun 2 | 1 1 . Energy Cannon . | . . . Ballistic Gun 5 | 1 3 1 Ballistic Cannon . | . . . Launcher 2 | . . 2 Special Weapon 1 | . . 1 Impact Weapon . | . . . Slashing Weapon 3 | . 2 1 Piercing Weapon . | . . . Special Melee Weapon . | . . . Unidentified Prototypes . | . . . Parts Lost 3 | . 1 2 Power 2 | . . 2 Propulsion . | . . . Utility . | . . . Weapon 1 | . 1 . Highest Loss Streak 1 | . 1 1 To Critical Strikes . | . . . Average Slot Usage (%) 98 | . 97 99 Engine 13 | . 14 13 Treads 8 | . 12 . Leg 19 | . 15 28 Storage 26 | . 26 28 Energy Gun 1 | . 2 . Ballistic Gun 17 | . 19 13 Special Weapon 2 | . . 8 Slashing Weapon 4 | . 5 4 Peak Build Rating 15 | 6 8 15 Average Rating 8 | 5 6 11 On Entrance 4 | . 6 8 Naked Turns . | . . . Heaviest Build 25 | 12 20 25 Greatest Support 40 | 20 40 22 Greatest Overweight (x) 1 | . . 1 Average Overweight (x) . | . . . Largest Inventory Capacity 10 | 8 10 10 Average Capacity 8 | 7 8 10 Most Carried 10 | 6 10 10 Average Carried 8 | 5 7 9 Final Capacity 10 | 8 10 10 Final Carried 10 | 6 10 9 Class Distribution -------------------- 86% | Mutant 13% | Scavenger-Mutant Dominant Class ---------------- Mutant | -10/Materials Mutant | -10/Mines Resources | -11 -10 -10 ----------- Run | Yrd Mat Min Matter Collected 872 | 268 439 165 Remotely . | . . . Salvage Created 758 | 87 584 87 Parts 50 | 1 42 7 Haulers Intercepted 1 | . 1 . Recyclers Shooed . | . . . Parts Field Recycled . | . . . Retrieved Matter . | . . . Parts Self-Destructed . | . . . Prevented . | . . . Kills | -11 -10 -10 ------- Run | Yrd Mat Min Combat Hostiles Destroyed 22 | . 16 6 Melee 11 | . 5 6 Guns 11 | . 11 . Classes Destroyed 6 | 2 4 . Worker 2 | 2 . . Hauler 1 | . 1 . Recycler 1 | 1 . . Watcher 3 | . 3 . Swarmer 12 | . 6 6 Grunt 10 | . 10 . Best Kill Streak 5 | 2 5 2 Combat Bots Only 4 | . 4 2 Max Kills in Single Turn 1 | 1 1 1 Gunslinging . | . . . Exploded . | . . . Melee 1 | . 1 1 Uniques/NPCs Destroyed . | . . . Combat | -11 -10 -10 -------- Run | Yrd Mat Min Hostile Shots Fired 158 | . 99 59 Missed 45 | . 30 15 Damage Taken 1188 | . 705 483 Core 255 | . 123 132 Absorbed by Shields . | . . . Core Remaining (%) 100 | 100 . . Volleys Fired 61 | 8 51 2 Largest 2 | 2 2 1 Hottest 60 | 60 60 33 Shots Fired 106 | 16 88 2 Gun 104 | 16 88 . Cannon . | . . . Launcher 2 | . . 2 Special . | . . . Kinetic 83 | 8 75 . Thermal 21 | 8 13 . Explosive 2 | . . 2 Electromagnetic . | . . . Robot Hit Streak 10 | 5 10 1 Robot Miss Streak 2 | 1 2 1 Penetration Max . | . . . Secondary Targets 1 | . 1 . Max Gunslinging Chain 1 | . 1 . Shots Hit Robots 96 | 10 75 11 Core Hits 44 | 4 33 7 Critical Kills 1 | . 1 . Critical Parts Destroyed 1 | . 1 . Critical Strikes 2 | . 2 . Destroy 2 | . 2 . Melee Attacks 48 | . 32 16 Impact . | . . . Slashing 48 | . 32 16 Piercing . | . . . Sneak Attacks . | . . . Combat Hostiles . | . . . Follow-up Attacks . | . . . Damage Inflicted 1311 | 96 960 255 Guns 720 | 96 624 . Cannons . | . . . Explosions 23 | . . 23 Melee 562 | . 330 232 Ramming 6 | . 6 . Kinetic 559 | 41 518 . Thermal 161 | 55 106 . Explosive 23 | . . 23 Electromagnetic . | . . . Impact . | . . . Slashing 562 | . 330 232 Piercing . | . . . Highest Corruption . | . . . Average Corruption . | . . . Corruption Purged . | . . . Corruption Blocked . | . . . Overload Shots . | . . . Overflow Damage 11 | . 8 3 Projectiles . | . . . Explosions . | . . . Melee 11 | . 8 3 Knockbacks . | . . . Impact . | . . . Kinetic . | . . . Secondary . | . . . Self-Inflicted Damage . | . . . Shots . | . . . Rammed 3 | . 3 . Targets Rammed 4 | . 4 . Kicked . | . . . Crushed 1 | . 1 . Highest Temperature 155 | 40 155 . Average Temperature 45 | 16 54 . Received Heat Transfer 189 | . 189 . Siege Activations . | . . . Robots Corrupted . | . . . Combat Hostiles . | . . . Parts Fried . | . . . Impact Corruptions . | . . . Robots Melted . | . . . Combat Hostiles . | . . . Parts Melted 1 | . 1 . Heat Transferred 375 | 125 250 . Parts Sabotaged . | . . . Parts Stolen . | . . . Parts Stripped . | . . . Power Chain Reactions . | . . . Alert | -11 -10 -10 ------- Run | Yrd Mat Min Peak Influence 203 | 15 203 152 Initial 78 | . 9 78 Average 85 | 6 106 77 Maximum Alert Level 1 | . 1 . Low Security (%) 93 | 100 89 100 Level 1 6 | . 10 . Level 2 . | . . . Level 3 . | . . . Level 4 . | . . . Level 5 . | . . . High Security . | . . . Max Security . | . . . Squads Dispatched 2 | . 2 . Investigation 1 | . 1 . Extermination . | . . . Reinforcement 1 | . 1 . Assault . | . . . Garrison . | . . . Intercept . | . . . Searches Triggered . | . . . Construction Impeded . | . . . Haulers Reinforced . | . . . Active Scanning Responses . | . . . Cargo Convoy Interrupts . | . . . Stealth | -11 -10 -10 --------- Run | Yrd Mat Min Distress Signals 2 | . 2 . Communications Jammed . | . . . Distress Signals . | . . . Times Spotted 36 | . 24 12 Peak Tracking Total 5 | . 5 3 Tactical Retreats 4 | . 2 2 Traps | -11 -10 -10 ------- Run | Yrd Mat Min Traps Triggered 2 | . 2 . Indirectly . | . . . Trap Hack Attempts . | . . . Triggered . | . . . Disarmed . | . . . Reprogrammed . | . . . Reused . | . . . Traps Extracted . | . . . Installed . | . . . Triggered . | . . . Machines | -11 -10 -10 ---------- Run | Yrd Mat Min Machines Disabled . | . . . Max in Single Turn . | . . . Machines Repaired . | . . . Machines Dismantled . | . . . Machines Sabotaged . | . . . Overloaded Fab Kills . | . . . Hacking | -11 -10 -10 --------- Run | Yrd Mat Min Machines Accessed 6 | . 5 1 Terminals 4 | . 4 . Fabricators . | . . . Repair Stations 1 | . 1 . Recycling Units . | . . . Scanalyzers . | . . . Garrison Access . | . . . Total Hacks 13 | . 12 1 Successful 5 | . 4 1 Failed 8 | . 8 . Catastrophic 1 | . 1 . Database Lockouts . | . . . Manual 2 | . 2 . Terminals 10 | . 10 . Fabricators . | . . . Repair Stations 2 | . 2 . Recycling Units . | . . . Scanalyzers . | . . . Garrison Access . | . . . Terminal Hacks 4 | . 3 1 Robot Analysis 1 | . 1 . Open Door 1 | . . 1 Branch Access Points 1 | . 1 . Registered Components 1 | . 1 . Fabricator Hacks . | . . . Repair Station Hacks 1 | . 1 . Scan Component 1 | . 1 . Recycling Unit Hacks . | . . . Scanalyzer . | . . . Garrison Access Hacks . | . . . Unauthorized Hacks . | . . . Terminals . | . . . Fabricators . | . . . Repair Stations . | . . . Recycling Units . | . . . Scanalyzers . | . . . Garrison Access . | . . . Data Cores Recovered . | . . . Used . | . . . Hacking Detections 5 | . 5 . Full Trace Events . | . . . Feedback Events . | . . . Feedback Blocked . | . . . Robot Schematics Acquired . | . . . Robots Built . | . . . Authchips . | . . . Time . | . . . Total Robot Build Rating . | . . . Part Schematics Acquired . | . . . Parts Built . | . . . Authchips . | . . . Time . | . . . Total Part Build Rating . | . . . Parts Repaired . | . . . Time . | . . . Parts Recycled . | . . . Recycled Matter . | . . . Retrieved Matter . | . . . Retrieved Components . | . . . Parts Scanalyzed . | . . . Part Schematics Acquired . | . . . Parts Damaged . | . . . Bothacking | -11 -10 -10 ------------ Run | Yrd Mat Min Used RIF Installer . | . . . Robots Hacked . | . . . Non-combat . | . . . Combat . | . . . Robot Hacks Applied . | . . . Relay Couplers Released . | . . . Fabnet Peak Effective % . | . . . Robots Rewired . | . . . Allies Hacked . | . . . Hacks Repelled . | . . . Allies | -11 -10 -10 -------- Run | Yrd Mat Min Total Allies . | . . . Largest Group . | . . . Highest-Rated Group . | . . . Highest-Rated Ally . | . . . Total Orders . | . . . Ally Attacks . | . . . Total Damage . | . . . Kills . | . . . Allies Corrupted . | . . . Allies Melted . | . . . Intel | -11 -10 -10 ------- Run | Yrd Mat Min Robot Analysis Total 1 | . 1 . Derelict Logs Recovered . | . . . Drone Launches . | . . . Drone Recoveries . | . . . Exploration | -11 -10 -10 ------------- Run | Yrd Mat Min Turns Passed 1978 | 250 1171 557 Spaces Moved 1017 | 110 540 367 Core 9 | 9 . . Treads 212 | . 212 . Legs 796 | 101 328 367 Wheels . | . . . Hover . | . . . Flight . | . . . Fastest Speed 50 | 50 120 105 Average Speed 129 | 114 135 125 Slowest Speed 190 | 120 160 190 Overloaded Moves . | . . . Propulsion Burnouts . | . . . Robots Hopped . | . . . Cave-ins Triggered . | . . . Exploration Rate (%) 49 | 8 74 66 Regions Visited 2 Branch Regions 1 Pre-discovered Areas . | . . . Known Exits Taken 1 | . 1 . Unknown Exits Taken 1 | 1 . . Scrap Searched 1 | . . 1 Spaces Dug . | . . . Terrain Destroyed 19 | . . 19 Melee . | . . . Projectile . | . . . AOE 19 | . . 19 Terrain Rammed . | . . . Walls Destroyed . | . . . Machines Disabled . | . . . Actions | -11 -10 -10 --------- Run | Yrd Mat Min Total 1484 | 217 835 432 Wait 261 | 87 152 22 Move 1015 | 109 539 367 Hop . | . . . Pick Up 29 | 7 18 4 Fast Attach 16 | 5 6 5 Attach 4 | 1 1 2 Detach 2 | . 1 1 Swap 15 | . 11 4 Drop 29 | . 20 9 Fire 61 | 8 51 2 Melee 48 | . 32 16 Ram . | . . . Kick . | . . . Crush 4 | . 4 . Escape Stasis . | . . . Rewire . | . . . Trap . | . . . Miscellaneous . | . . . Route ------- -11/Scrapyard -10/Materials (discovered 2 exits: [*Mat] / *Min) -10/Mines (discovered 1 exit: [*Mat]) History --------- Turn | Location | Event 6 | -11/Scrapyard | Discovered new exit (range 14) 251 | -11/Scrapyard | Entered Materials 309 | -10/Materials | Build established: Mutant 641 | -10/Materials | Identified exit to Mines 969 | -10/Materials | Discovered new exit (range 4) 1422 | -10/Materials | Entered Mines 1569 | -10/Mines | Met a Derelict who couldn't figure out how to use a Trap Extractor 1570 | -10/Mines | Core integrity fell below 50% 1771 | -10/Mines | Received a Rocket Launcher from a helpful Derelict 1825 | -10/Mines | Discovered new exit (range 5) 1968 | -10/Mines | Assembled infested the area 1976 | -10/Mines | Core integrity fell below 20% 1979 | -10/Mines | Destroyed by D-53 Grenadier with Mini Grenade Launcher Last Messages --------------- Acquired 12 matter. EXIT=FOUND S-10 Pest destroyed. Acquired 13 matter. S-10 Pest destroyed. Destroyed Flight Unit. Lgt. Deuterium Engine destroyed. S-10 Pest destroyed. Dropped Aluminum Leg. Acquired 17 matter. Acquired 3 matter. Acquired Lgt. Ion Engine. Acquired Aluminum Leg. S-10 Pest destroyed. ALERT: Infestation in the mines, dispatching Demolisher response squad. Dropped Aluminum Leg. K-01 Serf collects debris. C-30 ARC bursts open, deploying its payload. D-53 Grenadier unfolds itself. The unstable cave ceiling collapses. Map ----- +----------------------------------------------------+ | | | | | | | | | | | | | | | ?????????????????????????????????????? | | ?????????????????????????????????????? | | ?????????????????????????????????????? | | ?????????????????????????????????????? | | ???######????????????????????????????? | | #### ####?????????????????????????? | | # #???????????????"?????????? | | #??????????????""?????????? | | #?????????????? ?????????? | | ## ##?????????????? #?????????? | | ######??????????????? #?????????? | | #???????????????????? #?????????? | | #####???????????????? #?????????? | | #????????######## ##????????? | | ## #????????#[ # ##???????? | | ### #????#####%% # #???????? | | ##?# #????#* %== # # #???????? | | #??# #????#=###[= ##??????? | | #### #????#*#?# < @ #??????? | | #????#=#?# ##??????? | | ### |###### #?# #??????? | | # #?# #?# # #?????? | | ## #?# ########?## ## #????? | | ?# #?# #?????????# #? | | ?# #?# ????# ## d # #??? | | ?# #?# ???#$#### ### #?#??? | | ?# #?# ???????? ? ## % #????? | | ?# #?# ?????? ? ?? d #????? | | ## #?## ????# ? ?? # ##????? | | #??# ##????# ? ?? ###?????? | | #??#####?????# ??####???????? | | #####?????????????######?????????????? | | ?????????????????????????????????????? | | ?????????????????????????????????????? | | ?????????????????????????????????????? | | ?????????????????????????????????????? | | ?????????????????????????????????????? | | ?????????????????????????????????????? | | #????????????????????????????????????? | | #????????????????????????????????????? | | #????????????????????????????????????? | | ?????????????????????????????????????? | | ?????????????????????????????????????? | +----------------------------------------------------+ Best States ------------- Heat Dissipation 35 Energy Generation 14 Energy Capacity 250 Matter Stores 450 Matter Capacity 450 Sight Range 16 Terrain Scan Density 10 Evasion (%) 55 Recoil Reduction 2 Item Schematics ----------------- None Robot Schematics ------------------ None Fabricated ------------ Nothing Alien Tech Used ----------------- None Achievements -------------- None Challenges ------------ None Game ------ Seed CommSkeletonPenetrator Manual? 0 Play Time 00:56:53 Cumulative 17.1 hours Start 2025.03.12 @ 23:01:58 End 2025.03.13 @ 17:24:41 Sessions 2 Manual Loads 0 Difficulty Rogue Special Mode None Game No. 10 Rogue 2 Adventurer 8 Explorer 0 Win Type - Total 0 Types 0/0/0/0/0/0/0/0/0 Lore% 8 Gallery% 17 Achievement% 14 Wizard Run 0 Options --------- Layout 0 ASCII 0 Keyboard 1 Movement Numpad Keybinds 0 Fullscreen 1 Font 18/VGA_Max Map View 76x50 Zoom Use 0% Tactical HUD 0 Map Filters NONE Filters NONE Steam 1 RUN: a56df5e7-32fb-4670-bd44-c1b8850b69cf